Cogmind - Beta 15 @@@ ROGUE MODE // 2025.05.24 @ 12:22:53 Player: Windjigo Result: Destroyed by OH-8UF(j) with Overtuned Pulse Rifle Performance ------------- Evolutions (0) 0 Regions Visited (3) 600 Robots Destroyed (15) 75 Value Destroyed (319) 319 Prototype IDs (0) 0 Alien Tech Used (0) 0 Bonus (784) 784 TOTAL SCORE: 1778 Bonus ------- Registered with UFD 300 Met Optimus in HQ 500 Friendly Fire -16 Cogmind --------- Core Integrity 0/250 Matter 290/300 Energy 85/100 System Corruption 0% Temperature Cool (12) Movement Rolling (120) Ox1 Location -9/Scraptown Parts ------- > --- POWER (1) -------- (None) > --- PROPULSION (2) --- Subdweller Monowheel > --- UTILITY (2) ------ Large Storage Unit Makeshift System Shield > --- WEAPON (2) ------- Makeshift Hammer Power Maul > --- INVENTORY (15) --- Scrap Suit Scrap Suit Improved Sensor Array Advanced Signal Interpreter Scrapoid Pod Heavy Ion Cannon Heavy Ion Cannon Ripper Makeshift Axe Power Sword DRS Beacon (Ready) Peak State ------------ > --- POWER ------------ Ion Engine > --- PROPULSION ------- Wheel Compact Wheel > --- UTILITY ---------- Large Storage Unit Makeshift System Shield > --- WEAPON ----------- Makeshift Hammer Power Maul > --- INVENTORY -------- Subdweller Monowheel Scrap Suit Scrap Suit Disposable Heat Sink Large Storage Unit Scrapoid Pod Heavy Ion Cannon Heavy Ion Cannon Ripper Makeshift Axe Power Sword DRS Beacon [Rating: 22] Favorites ----------- Power Ion Engine Engine Ion Engine Propulsion Wheel Wheel Wheel Utility Small Storage Unit Device Seismic Detector Storage Small Storage Unit Processor Improved Targeting Computer Hackware Makeshift System Shield Protection Light Armor Plating Weapon Makeshift Hammer Energy Gun EM Pulse Gun Energy Cannon Subdweller Beam Cannon Ballistic Gun Subdweller Machine Gun Impact Weapon Makeshift Hammer Slashing Weapon Ripper Build | -11 -10 -10 -9 ------- Run | Yrd Mat Sub Scr Slots Evolved . | . . . . Power . | . . . . Propulsion . | . . . . Utility . | . . . . Weapon . | . . . . Parts Attached 23 | 9 . 8 6 Power 4 | 2 . 2 . Engine 4 | 2 . 2 . Core . | . . . . Reactor . | . . . . Propulsion 6 | 3 . 1 2 Treads . | . . . . Leg . | . . . . Wheel 6 | 3 . 1 2 Hover . | . . . . Flight . | . . . . Utility 6 | 2 . 1 3 Device 1 | 1 . . . Storage 2 | 1 . . 1 Processor 1 | . . . 1 Hackware 1 | . . . 1 Protection 1 | . . 1 . Artifact . | . . . . Weapon 7 | 2 . 4 1 Energy Gun 1 | 1 . . . Energy Cannon 1 | . . 1 . Ballistic Gun 2 | 1 . 1 . Ballistic Cannon . | . . . . Launcher . | . . . . Special Weapon . | . . . . Impact Weapon 2 | . . 1 1 Slashing Weapon 1 | . . 1 . Piercing Weapon . | . . . . Special Melee Weapon . | . . . . Unidentified Prototypes . | . . . . Parts Lost 7 | . . 4 3 Power 2 | . . 1 1 Propulsion 4 | . . 2 2 Utility 1 | . . 1 . Weapon . | . . . . Highest Loss Streak 3 | . . 1 3 To Critical Strikes . | . . . . Average Backups 8 | 2 7 7 10 Power . | . . . . Propulsion 1 | . 2 1 1 Utility 3 | . 2 3 3 Weapon 3 | 1 2 1 4 Tool/Special . | . . . . Unused Backups 26 | . . 7 19 Power . | . . . . Propulsion 2 | . . 2 . Utility 10 | . . 3 7 Weapon 12 | . . 2 10 Tool/Special 2 | . . . 2 Average Slot Usage (%) 93 | . 100 98 87 Engine 13 | . 14 13 14 Wheel 21 | . 28 27 16 Device 7 | . 14 8 5 Storage 14 | . 14 14 14 Processor 2 | . . . 4 Hackware 2 | . . . 4 Protection 2 | . . 5 . Energy Gun 1 | . 14 2 . Ballistic Gun 6 | . 14 13 . Impact Weapon 14 | . . 11 17 Slashing Weapon 5 | . . . 10 Peak Build Rating 22 | 7 8 15 22 Average Rating 14 | 4 7 11 18 On Entrance 7 | . 7 8 14 Naked Turns . | . . . . Heaviest Build 32 | 15 15 20 32 Greatest Support 30 | 26 20 30 26 Greatest Overweight (x) 1 | 1 . 1 1 Average Overweight (x) . | . . . . Largest Inventory Capacity 15 | 8 8 8 15 Average Capacity 11 | 7 8 8 14 Most Carried 15 | 5 8 8 15 Average Carried 10 | 2 7 7 13 Final Capacity 15 | 8 8 8 15 Final Carried 14 | 4 8 8 14 Class Distribution -------------------- 94% | Mutant 5% | Scavenger-Mutant Dominant Class ---------------- Mutant | -10/Materials Mutant | -10/Subcaves Mutant | -9/Scraptown Resources | -11 -10 -10 -9 ----------- Run | Yrd Mat Sub Scr Matter Collected 502 | 256 12 150 84 Remotely . | . . . . Salvage Created 553 | 142 12 399 . Parts 25 | 9 1 15 . Haulers Intercepted . | . . . . Recyclers Shooed 1 | 1 . . . Parts Field Recycled . | . . . . Retrieved Matter . | . . . . Parts Self-Destructed 10 | . . 10 . Prevented . | . . . . Kills | -11 -10 -10 -9 ------- Run | Yrd Mat Sub Scr Combat Hostiles Destroyed 10 | . . 10 . Melee 1 | . . 1 . Guns 2 | . . 2 . Cannons 1 | . . 1 . Classes Destroyed 5 | 2 . 3 . Tunneler 4 | 3 1 . . Recycler 1 | 1 . . . Swarmer 4 | . . 4 . Sentry 1 | . . 1 . Subdweller 5 | . . 5 . Best Kill Streak 4 | 4 1 4 . Combat Bots Only 4 | . . 4 . Max Kills in Single Turn 2 | 2 1 1 . Gunslinging . | . . . . Exploded . | . . . . Melee 1 | . . 1 . Uniques/NPCs Destroyed . | . . . . Combat | -11 -10 -10 -9 -------- Run | Yrd Mat Sub Scr Hostile Shots Fired 76 | . . 62 14 Missed 21 | . . 21 . Hits 55 | . . 41 14 Projectile 55 | . . 41 14 Critical Strikes 5 | . . 4 1 Damage Taken 959 | . . 721 238 Core 250 | . . 180 70 Absorbed by Shields . | . . . . Core Remaining (%) 100 | 100 . . . Volleys Fired 30 | 8 2 20 . Largest 2 | 2 2 2 . Hottest 80 | 60 60 80 . Shots Fired 42 | 16 4 22 . Gun 40 | 16 4 20 . Cannon 2 | . . 2 . Launcher . | . . . . Special . | . . . . Kinetic 27 | 8 2 17 . Thermal 2 | . . 2 . Explosive . | . . . . Electromagnetic 13 | 8 2 3 . Robot Hit Streak 9 | 6 4 9 . Robot Miss Streak 2 | 2 . 1 . Penetration Max . | . . . . Secondary Targets . | . . . . Shots Hit Robots 43 | 9 3 31 . Core Hits 14 | 5 2 7 . Critical Kills 1 | . . 1 . Critical Parts Destroyed 5 | . . 5 . Critical Strikes 8 | . 1 7 . Destroy 1 | . . 1 . Corrupt 1 | . 1 . . Smash 6 | . . 6 . Melee Attacks 34 | . . 33 1 Impact 34 | . . 33 1 Slashing . | . . . . Piercing . | . . . . Sneak Attacks . | . . . . Combat Hostiles . | . . . . Follow-up Attacks . | . . . . Damage Inflicted 1562 | 129 41 1392 . Guns 273 | 129 41 103 . Cannons 56 | . . 56 . Explosions . | . . . . Melee 1233 | . . 1233 . Ramming . | . . . . Kinetic 154 | 71 15 68 . Thermal 56 | . . 56 . Explosive . | . . . . Electromagnetic 119 | 58 26 35 . Impact 1233 | . . 1233 . Slashing . | . . . . Piercing . | . . . . Highest Corruption . | . . . . Average Corruption . | . . . . Corruption Purged . | . . . . Corruption Blocked . | . . . . Overload Shots . | . . . . Overflow Damage 324 | . . 324 . Projectiles 9 | . . 9 . Explosions . | . . . . Melee 315 | . . 315 . Knockbacks 12 | . . 12 . Impact 12 | . . 12 . Kinetic . | . . . . Secondary . | . . . . Self-Inflicted Damage . | . . . . Shots . | . . . . Rammed . | . . . . Targets Rammed . | . . . . Kicked . | . . . . Crushed . | . . . . Highest Temperature 232 | . . 232 12 Average Temperature 107 | . . 121 12 Received Heat Transfer 483 | . . 365 118 Siege Activations . | . . . . Martial Activations . | . . . . Shielding Activations . | . . . . Robots Disrupted . | . . . . Combat Hostiles . | . . . . Robots Corrupted 8 | . . 8 . Combat Hostiles 8 | . . 8 . Parts Fried 10 | 1 . 9 . Impact Corruptions 12 | . . 12 . Robots Melted . | . . . . Combat Hostiles . | . . . . Parts Melted . | . . . . Heat Transferred 74 | . . 74 . Parts Sabotaged . | . . . . Parts Stolen . | . . . . Parts Stripped . | . . . . Power Chain Reactions . | . . . . Alert | -11 -10 -10 -9 ------- Run | Yrd Mat Sub Scr Maximum Alert Level . | . . . . Low Security (%) 100 | 100 100 . . Level 1 . | . . . . Level 2 . | . . . . Level 3 . | . . . . Level 4 . | . . . . Level 5 . | . . . . High Security . | . . . . Max Security . | . . . . Peak Influence 15 | 15 5 . . Initial 3 | . 3 . . Average 1 | 2 . . . Influence Increases 215 | 20 5 190 . Destroy 0b10 Robot/C 100 | . . 100 . Destroy 0b10 Robot/NC 25 | 20 5 . . Lose Combat Pursuer 90 | . . 90 . Influence Decreases 215 | 15 10 52 138 Entered New Map 140 | . 2 . 138 Time Decay 65 | 15 8 42 . Lost Part 10 | . . 10 . Squads Dispatched . | . . . . Investigation . | . . . . Extermination . | . . . . Reinforcement . | . . . . Assault . | . . . . Garrison . | . . . . Intercept . | . . . . Searches Triggered . | . . . . Construction Impeded . | . . . . Haulers Reinforced . | . . . . Active Scanning Responses . | . . . . Cargo Convoy Interrupts . | . . . . Stealth | -11 -10 -10 -9 --------- Run | Yrd Mat Sub Scr Distress Signals 1 | . 1 . . Communications Jammed . | . . . . Distress Signals . | . . . . Times Spotted 29 | . 3 17 9 Peak Tracking Total 7 | . 3 6 7 Tactical Retreats 3 | . . 3 . Traps | -11 -10 -10 -9 ------- Run | Yrd Mat Sub Scr Traps Triggered 1 | . . 1 . Indirectly . | . . . . Trap Hack Attempts . | . . . . Triggered . | . . . . Disarmed . | . . . . Reprogrammed . | . . . . Reused . | . . . . Traps Extracted . | . . . . Installed . | . . . . Triggered . | . . . . Most Traps Carried 1 | . . 1 1 Machines | -11 -10 -10 -9 ---------- Run | Yrd Mat Sub Scr Machines Disabled . | . . . . Max in Single Turn . | . . . . Machines Repaired . | . . . . Machines Dismantled . | . . . . Machines Sabotaged . | . . . . Overloaded Fab Kills . | . . . . Hacking | -11 -10 -10 -9 --------- Run | Yrd Mat Sub Scr Machines Accessed 5 | . . 1 4 Terminals . | . . . . Fabricators . | . . . . Repair Stations . | . . . . Recycling Units . | . . . . Scanalyzers . | . . . . Garrison Access . | . . . . Total Hacks 18 | . . 4 14 Successful 18 | . . 4 14 Failed . | . . . . Catastrophic . | . . . . Database Lockouts . | . . . . Manual . | . . . . Terminals . | . . . . Fabricators . | . . . . Repair Stations . | . . . . Recycling Units . | . . . . Scanalyzers . | . . . . Garrison Access . | . . . . Terminal Hacks 18 | . . 4 14 Record 18 | . . 4 14 Fabricator Hacks . | . . . . Repair Station Hacks . | . . . . Recycling Unit Hacks . | . . . . Scanalyzer . | . . . . Garrison Access Hacks . | . . . . Unauthorized Hacks . | . . . . Terminals . | . . . . Fabricators . | . . . . Repair Stations . | . . . . Recycling Units . | . . . . Scanalyzers . | . . . . Garrison Access . | . . . . Data Cores Recovered . | . . . . Used . | . . . . Hacking Detections . | . . . . Full Trace Events . | . . . . Feedback Events . | . . . . Feedback Blocked . | . . . . Robot Schematics Acquired . | . . . . Robots Built . | . . . . Authchips . | . . . . Time . | . . . . Total Robot Build Rating . | . . . . Part Schematics Acquired . | . . . . Parts Built . | . . . . Authchips . | . . . . Time . | . . . . Total Part Build Rating . | . . . . Parts Repaired . | . . . . Time . | . . . . Parts Recycled . | . . . . Recycled Matter . | . . . . Retrieved Matter . | . . . . Retrieved Components . | . . . . Parts Scanalyzed . | . . . . Part Schematics Acquired . | . . . . Parts Damaged . | . . . . Bothacking | -11 -10 -10 -9 ------------ Run | Yrd Mat Sub Scr Used RIF Installer . | . . . . Robots Hacked . | . . . . Non-combat . | . . . . Combat . | . . . . Robot Hacks Applied . | . . . . Relay Couplers Released . | . . . . Fabnet Peak Effective % . | . . . . Robots Rewired . | . . . . Allies Hacked . | . . . . Hacks Repelled . | . . . . Allies | -11 -10 -10 -9 -------- Run | Yrd Mat Sub Scr Total Allies . | . . . . Largest Group . | . . . . Highest-Rated Group . | . . . . Highest-Rated Ally . | . . . . Total Orders . | . . . . Ally Attacks . | . . . . Total Damage . | . . . . Kills . | . . . . Allies Corrupted . | . . . . Allies Melted . | . . . . Intel | -11 -10 -10 -9 ------- Run | Yrd Mat Sub Scr Active Infowar (turns) 1874 | 15 136 965 758 Seismic 1874 | 15 136 965 758 Robot Analysis Total . | . . . . Derelict Logs Recovered 3 | . . 2 1 Drone Launches . | . . . . Drone Recoveries . | . . . . Exploration | -11 -10 -10 -9 ------------- Run | Yrd Mat Sub Scr Turns Passed 3646 | 78 136 1624 1808 Spaces Moved 3328 | 45 78 1644 1561 Core 19 | 19 . . . Treads . | . . . . Legs . | . . . . Wheels 3309 | 26 78 1644 1561 Hover . | . . . . Flight . | . . . . Fastest Speed 50 | 50 80 80 90 Average Speed 99 | 76 80 87 112 Slowest Speed 115 | 100 80 115 115 Overloaded Moves . | . . . . Propulsion Burnouts . | . . . . Robots Hopped . | . . . . Potential Cave-ins . | . . . . Cave-ins Triggered . | . . . . Exploration Rate (%) 50 | 3 19 88 90 Regions Visited 3 Branch Regions 2 Pre-discovered Areas 2 | . . 2 . Known Exits Taken . | . . . . Unknown Exits Taken 3 | 1 1 1 . Scrap Searched 12 | . . 5 7 Spaces Dug . | . . . . Terrain Destroyed . | . . . . Melee . | . . . . Projectile . | . . . . AOE . | . . . . Terrain Rammed . | . . . . Walls Destroyed . | . . . . Machines Disabled . | . . . . Actions | -11 -10 -10 -9 --------- Run | Yrd Mat Sub Scr Total 3603 | 71 147 1774 1611 Wait 113 | . 64 41 8 Move 3325 | 44 77 1643 1561 Hop . | . . . . Pick Up 45 | 9 4 12 20 Fast Attach 7 | 2 . 3 2 Attach 10 | 5 . 3 2 Detach 1 | . . 1 . Swap 8 | 2 . 4 2 Drop 30 | 1 . 14 15 Fire 30 | 8 2 20 . Melee 34 | . . 33 1 Ram . | . . . . Kick . | . . . . Crush . | . . . . Escape Stasis . | . . . . Rewire . | . . . . Trap . | . . . . Miscellaneous . | . . . . Route ------- -11/Scrapyard -10/Materials -10/Subcaves (discovered 5 exits: [*Mat x2] / [*Rec] / *Scr x2) -9/Scraptown (discovered 2 exits: [*Fac x2]) History --------- Turn | Location | Event 9 | -11/Scrapyard | Discovered new exit (range 16) 79 | -11/Scrapyard | Entered Materials 80 | -10/Materials | Met a group of wandering Federalists 139 | -10/Materials | Discovered new exit (range 9) 215 | -10/Materials | Entered Subcaves 216 | -10/Subcaves | Continued accompanying wandering Federalists (5) 216 | -10/Subcaves | Approached by a straggling Scientist 240 | -10/Subcaves | Visited Clippyterm 242 | -10/Subcaves | Learned Factory fabricator intel 242 | -10/Subcaves | Learned Factory emergency access door positions 316 | -10/Subcaves | Build established: Mutant 403 | -10/Subcaves | Scientist uncovered a shortcut to Scraptown 471 | -10/Subcaves | Learned location of Zion (-7) 471 | -10/Subcaves | Met a Zionite searching for "candidates" 632 | -10/Subcaves | Shifting Twisted Machinery released Mak. System Shield 632 | -10/Subcaves | Discovered new exit (range 9) 636 | -10/Subcaves | Shifting Twisted Machinery released Sub. Machine Gun 784 | -10/Subcaves | Learned location of Storage (-9) 874 | -10/Subcaves | Learned Materials security intel 1294 | -10/Subcaves | Core integrity fell below 50% 1557 | -10/Subcaves | Shifting Twisted Machinery released Sub. Machine Gun 1557 | -10/Subcaves | Shifting Twisted Machinery released Mak. Shrapnel Gun 1589 | -10/Subcaves | Discovered new exit (range 11) 1633 | -10/Subcaves | A swath of the cavern ceiling suddenly collapsed 1719 | -10/Subcaves | Shifting Twisted Machinery released Ripper 1724 | -10/Subcaves | Shifting Twisted Machinery released Sub. Beam Cannon 1752 | -10/Subcaves | Discovered new exit (range 11) 1839 | -10/Subcaves | Entered Scraptown 1958 | -9/Scraptown | Visited UFD Registry 1958 | -9/Scraptown | Registered with UFD as "Carbonbrain" 2040 | -9/Scraptown | Delivered Scrap Shield to a Scientist 2167 | -9/Scraptown | Visited Junk Repository 2206 | -9/Scraptown | Visited Scrapoid Pod Storage 2215 | -9/Scraptown | Found Scrapoid Pod 2249 | -9/Scraptown | Visited Derelict Rescue Squad 2259 | -9/Scraptown | Found DRS Beacon 2301 | -9/Scraptown | Visited Curators Association 2327 | -9/Scraptown | Visited Abandonware Association 2340 | -9/Scraptown | Learned abandonware demo "TRNCOAT.EXE" 2369 | -9/Scraptown | Visited Scrapoid Research Area 2397 | -9/Scraptown | Visited Chapter 10 2407 | -9/Scraptown | Visited Scrap Suit Storage 2416 | -9/Scraptown | Found Scrap Suit 2419 | -9/Scraptown | Found Scrap Suit 2449 | -9/Scraptown | Visited Supply Room 2553 | -9/Scraptown | Visited Symbiants 2584 | -9/Scraptown | Visited Bundlers 2680 | -9/Scraptown | Visited Fellowship of the Rings 2703 | -9/Scraptown | Visited Comm Corps 2771 | -9/Scraptown | Visited TADAMA 2833 | -9/Scraptown | Visited Cyclists 2848 | -9/Scraptown | Entered Cyclist Reading Room 2882 | -9/Scraptown | Visited Science Testing Area 2935 | -9/Scraptown | Scanned Subdweller tech in exchange for log data 2938 | -9/Scraptown | Learned Research emergency access door positions 2953 | -9/Scraptown | Discovered new exit (range 11) 3572 | -9/Scraptown | Met Optimus 3572 | -9/Scraptown | Accepted into 0bPrime 3626 | -9/Scraptown | Civil war broke out across Scraptown 3632 | -9/Scraptown | Discovered new exit (range 5) 3642 | -9/Scraptown | Core integrity fell below 20% 3647 | -9/Scraptown | Destroyed by OH-8UF(j) with Overtuned Pulse Rifle Last Messages --------------- 03635_ Bolt penetrates 7J-F57(E). 03640_ 7J-F57(E) suffers critical hit (Burn). 03640_ 7J-F57(E) destroyed. 03640_ Bolt penetrates Q7-4WE(E). 03640_ Acquired 10 matter. 03641_ Bolt penetrates Q7-4WE(E). 03641_ Ion Engine destroyed. 03641_ IB-SXM(p) destroyed. 03641_ Critical hit (Burn: +50). 03643_ Bolt penetrates Q7-4WE(E). 03644_ Q7-4WE(E) cannibalizes Ovr. Treads to repair Ovr. Treads. 03644_ Q7-4WE(E) suffers critical hit (Burn). 03644_ Q7-4WE(E) destroyed. 03644_ Slug penetrates Wall. 03645_ Wheel destroyed. 03645_ Penetrated by Bolt. 03645_ Com. Wheel destroyed. 03646_ Penetrated by Bolt. [Achievement: I Think I Know What's Going On] Map ----- +----------------------------------------------------+ | | | | | | | | | | | | | | | | | | | ?????????????????????????????????????????????????? | | ?????????????????????????????????????????????????? | | ?????????????????????????????????????????????????? | | ?????????????????????????????????????????????????? | | ?????????????????????????????????????????????????? | | ?????????????????????????????????????????????????? | | ?????????????????????????????????????????????????? | | ?????????????????????????????????????????????????? | | ?????????????????????????????????????????????????? | | ?????????????????????????????????????????????????? | | ?????????????????????????????????????????????????? | | ???????????????????????#####?????????????????????? | | ???????????????????????#"""#?????????????????????? | | ??????????????######???#"j"#?????????????????????? | | ??????#""????## #"#???#hhg#?????????????????????? | | ??"" ##!!"#### ######jhj#####?????????????????? | | E[%!@==; #?????????????????? | | [E!%*!! ####?????????????????? | | ??????######## =!###########????????????????????? | | ?????????????##!%##??????????????????????????????? | | ????#########?# [!???????????????????????????????? | | ????#""""" # ##???????##?????????????????????? | | ##### " " " # #??"""?"""??????????????????????? | | """## """# #?? " ##?????????????????????? | | " ## """# #?? #?????????????????????? | | ## " """# #"" #?????????????????????? | | " ##""" " # #"""" #?????????????????????? | | " ##""" # #"" " #?????????????????????? | | " ##""" ""# #"""" #?????????????????????? | | " ## " "# #"" ???????????????????????? | | ## "# #" ?????????????????????????? | | ## # # ???????????????????????????? | | ######### ##### ## #????????????????????????????? | | ######### ##### ## ##???????????????????????????? | | """"""""" """"" "" "##########??????????????????? | | "## #"""""#??????????????????? | | "## !!!! #??????????????????? | | "## ##"#???????????????? | | "## X" #???????????????? | | #???????????????? | | """"""""""""""" "## ][ #???????????????? | +----------------------------------------------------+ Best States ------------- Heat Dissipation 25 Energy Generation 15 Energy Capacity 250 Matter Stores 300 Matter Capacity 300 Sight Range 16 Terrain Scan Density 10 Armor Coverage 150 Evasion (%) 50 Targeting Accuracy 6 Defensive Hacking 11 Item Schematics ----------------- None Robot Schematics ------------------ None Fabricated ------------ Nothing Repaired ---------- Nothing Alien Tech Used ----------------- None Achievements -------------- I Think I Know What's Going On Challenges ------------ None Game ------ Seed HeavyAluminumSpecial Manual? 0 Play Time 00:32:45 Cumulative 68.8 hours Start 2025.05.24 @ 11:51:00 End 2025.05.24 @ 12:22:53 Sessions 1 Manual Loads 0 Difficulty Rogue Special Mode None Game No. 46 Rogue 46 Adventurer 0 Explorer 0 Win Type - Total 0 Types 0/0/0/0/0/0/0/0/0/0 Lore% 50 Gallery% 41 Achievement% 37 Wizard Run 0 Options --------- Layout 1 ASCII 0 Keyboard 0 Movement Mouse Keybinds 0 Fullscreen 1 Font 24/Smallcaps Map View 50x35 Zoom Use 0% Tactical HUD 1 Map Filters NONE Filters NONE Steam 1 RUN: 4569df16-f376-430c-9283-3e5f221c881d